[Event "*** Titled Tuesday Blitz"]
[Site "Chess.com"]
[Date "2020.05.12"]
[Round "1"]
[White "Tashik"]
[Black "Sychev_Klementy"]
[Result "0-1"]
[WhiteElo "2441"]
[BlackElo "2863"]
[TimeControl "180+1"]
[EndTime "10:08:11 PDT"]
[Termination "Sychev_Klementy won by resignation"]

1. c4 {[%clk 0:03:00.9]} 1... g6 {[%clk 0:02:57.8]} 2. e4 {[%clk 0:03:00.3]}
2... e5 {[%clk 0:02:54.8]} 3. Nf3 {[%clk 0:02:58.1]} 3... Bg7 {[%clk 0:02:53]}
4. d4 {[%clk 0:02:56.1]} 4... exd4 {[%clk 0:02:52.9]} 5. Nxd4 {[%clk 0:02:57]}
5... Nf6 {[%clk 0:02:53.2]} 6. Nc3 {[%clk 0:02:56.7]} 6... O-O {[%clk
0:02:53.1]} 7. Be2 {[%clk 0:02:57.1]} 7... Re8 {[%clk 0:02:51.8]} 8. f3 {[%clk
0:02:55.1]} 8... c6 {[%clk 0:02:50.1]} 9. O-O {[%clk 0:02:48.5]} 9... d5 {[%clk
0:02:48.8]} 10. cxd5 {[%clk 0:02:48.1]} 10... cxd5 {[%clk 0:02:48]} 11. exd5
{[%clk 0:02:20.9]} 11... Nxd5 {[%clk 0:02:46.4]} 12. Ndb5 {[%clk 0:02:21.3]}
12... Nxc3 {[%clk 0:02:33.3]} 13. Nxc3 {[%clk 0:02:08.9]} 13... Nc6 {[%clk
0:02:04.1]} 14. Qxd8 {[%clk 0:02:07.8]} 14... Rxd8 {[%clk 0:02:03.3]} 15. Bg5
{[%clk 0:02:08.4]} 15... Re8 {[%clk 0:02:01]} 16. Rfe1 {[%clk 0:02:05]} 16...
Bf5 {[%clk 0:01:52.4]} 17. Bb5 {[%clk 0:01:53.1]} 17... h6 {[%clk 0:01:09.4]}
18. Bh4 {[%clk 0:01:52]} 18... Rac8 {[%clk 0:00:48.1]} 19. Rxe8+ {[%clk
0:01:41]} 19... Rxe8 {[%clk 0:00:47.2]} 20. Re1 {[%clk 0:00:57.3]} 20... Rxe1+
{[%clk 0:00:38.2]} 21. Bxe1 {[%clk 0:00:58.2]} 21... Nb4 {[%clk 0:00:38.2]} 22.
a3 {[%clk 0:00:49.9]} 22... Nd3 {[%clk 0:00:32.6]} 23. Bxd3 {[%clk 0:00:49.8]}
23... Bxd3 {[%clk 0:00:32.4]} 24. Bf2 {[%clk 0:00:42.6]} 24... b6 {[%clk
0:00:31.1]} 25. g4 {[%clk 0:00:39.5]} 25... Kf8 {[%clk 0:00:28]} 26. Be3 {[%clk
0:00:39.5]} 26... Ke7 {[%clk 0:00:26.1]} 27. Kf2 {[%clk 0:00:40]} 27... Kd6
{[%clk 0:00:24.5]} 28. h4 {[%clk 0:00:39.2]} 28... Kc6 {[%clk 0:00:20.8]} 29.
Bf4 {[%clk 0:00:34.8]} 29... a5 {[%clk 0:00:20.2]} 30. Ke3 {[%clk 0:00:35.2]}
30... Bc2 {[%clk 0:00:19.7]} 31. Kd2 {[%clk 0:00:35.2]} 31... Bb3 {[%clk
0:00:19.4]} 32. Kd3 {[%clk 0:00:26.1]} 32... b5 {[%clk 0:00:19.3]} 33. Bc1
{[%clk 0:00:20.1]} 33... b4 {[%clk 0:00:19.2]} 34. axb4 {[%clk 0:00:19.7]} 34...
axb4 {[%clk 0:00:19.2]} 35. Ne4 {[%clk 0:00:20.2]} 35... Kd5 {[%clk 0:00:10.9]}
36. Nd2 {[%clk 0:00:17.6]} 36... Bd1 {[%clk 0:00:09.5]} 37. Ke3 {[%clk
0:00:14.2]} 37... Be5 {[%clk 0:00:09.5]} 38. f4 {[%clk 0:00:10.8]} 38... Bd4+
{[%clk 0:00:09]} 39. Kd3 {[%clk 0:00:11.1]} 39... Bf2 {[%clk 0:00:09.3]} 40. g5
{[%clk 0:00:08.4]} 40... h5 {[%clk 0:00:09.4]} 41. Ne4 {[%clk 0:00:08.7]} 41...
Bxh4 {[%clk 0:00:07.2]} 42. Nf6+ {[%clk 0:00:08.6]} 42... Ke6 {[%clk 0:00:05.6]}
43. Bd2 {[%clk 0:00:09]} 43... b3 {[%clk 0:00:05.5]} 44. Bc3 {[%clk 0:00:08.7]}
44... Bg3 {[%clk 0:00:05]} 45. Be5 {[%clk 0:00:06.9]} 45... h4 {[%clk
0:00:04.4]} 46. Ng4 {[%clk 0:00:06]} 46... h3 {[%clk 0:00:03.5]} 47. Ne3 {[%clk
0:00:06.4]} 47... Bc2+ {[%clk 0:00:02.5]} 48. Kd2 {[%clk 0:00:06.1]} 48... h2
{[%clk 0:00:02.8]} 49. f5+ {[%clk 0:00:04.9]} 49... Kxe5 {[%clk 0:00:02.8]} 50.
Ng4+ {[%clk 0:00:05.3]} 50... Kxf5 {[%clk 0:00:03.3]} 51. Nxh2 {[%clk
0:00:05.9]} 51... Bxh2 {[%clk 0:00:03.3]} 52. Kc3 {[%clk 0:00:06.8]} 52... Be5+
{[%clk 0:00:03.5]} 0-1

[Event "*** Titled Tuesday Blitz"]
[Site "Chess.com"]
[Date "2020.05.12"]
[Round "1"]
[White "Soltan49"]
[Black "BogdanDeac"]
[Result "1/2-1/2"]
[WhiteElo "2462"]
[BlackElo "2916"]
[TimeControl "180+1"]
[EndTime "10:08:12 PDT"]
[Termination "Game drawn by repetition"]

1. e4 {[%clk 0:03:00.7]} 1... c6 {[%clk 0:02:59.5]} 2. d4 {[%clk 0:03:00.5]}
2... d5 {[%clk 0:03:00]} 3. e5 {[%clk 0:03:00.8]} 3... Bf5 {[%clk 0:02:59.1]} 4.
h4 {[%clk 0:03:01]} 4... h5 {[%clk 0:02:58.5]} 5. Bd3 {[%clk 0:02:59.9]} 5...
Bxd3 {[%clk 0:02:58.3]} 6. Qxd3 {[%clk 0:03:00.8]} 6... e6 {[%clk 0:02:59.1]} 7.
Bg5 {[%clk 0:03:00.8]} 7... Qa5+ {[%clk 0:02:58.3]} 8. Nd2 {[%clk 0:03:00.8]}
8... Ne7 {[%clk 0:02:58.4]} 9. Ne2 {[%clk 0:02:59.8]} 9... c5 {[%clk 0:02:58.3]}
10. c4 {[%clk 0:02:56.9]} 10... Nbc6 {[%clk 0:02:57.5]} 11. O-O {[%clk
0:02:55.6]} 11... cxd4 {[%clk 0:02:56.8]} 12. Nxd4 {[%clk 0:02:42.2]} 12... Nxe5
{[%clk 0:02:49.8]} 13. Qg3 {[%clk 0:02:40.4]} 13... N7c6 {[%clk 0:02:44.5]} 14.
N2b3 {[%clk 0:02:18.9]} 14... Nxd4 {[%clk 0:02:34.5]} 15. Qxe5 {[%clk
0:02:03.3]} 15... Nc6 {[%clk 0:02:30.1]} 16. Qg3 {[%clk 0:01:36.5]} 16... Qb4
{[%clk 0:02:13.3]} 17. cxd5 {[%clk 0:01:36]} 17... Bd6 {[%clk 0:02:12.9]} 18.
Qe3 {[%clk 0:01:27]} 18... Nd8 {[%clk 0:02:07]} 19. Bxd8 {[%clk 0:01:19.4]}
19... Rxd8 {[%clk 0:02:04.4]} 20. dxe6 {[%clk 0:01:19.5]} 20... Qxh4 {[%clk
0:02:03.7]} 21. exf7+ {[%clk 0:01:19.2]} 21... Kxf7 {[%clk 0:02:03.6]} 22. g3
{[%clk 0:01:19.3]} 22... Qg4 {[%clk 0:01:40]} 23. Rad1 {[%clk 0:01:06.5]} 23...
h4 {[%clk 0:01:29.5]} 24. Rd4 {[%clk 0:01:04.8]} 24... Qh5 {[%clk 0:00:57.2]}
25. g4 {[%clk 0:00:46.2]} 25... Qe5 {[%clk 0:00:54.9]} 26. Qf3+ {[%clk
0:00:32.5]} 26... Kg8 {[%clk 0:00:44.9]} 27. Rfd1 {[%clk 0:00:29.9]} 27... Qh2+
{[%clk 0:00:32]} 28. Kf1 {[%clk 0:00:29.7]} 28... Rf8 {[%clk 0:00:31.5]} 29.
Qd5+ {[%clk 0:00:26.8]} 29... Rf7 {[%clk 0:00:31]} 30. R1d2 {[%clk 0:00:19.4]}
30... Bc7 {[%clk 0:00:19.4]} 31. Nc5 {[%clk 0:00:13.3]} 31... Qh3+ {[%clk
0:00:17.8]} 32. Ke2 {[%clk 0:00:09.9]} 32... Qh2 {[%clk 0:00:15.1]} 33. Ne6
{[%clk 0:00:09.2]} 33... Qxf2+ {[%clk 0:00:14.8]} 34. Kd1 {[%clk 0:00:08.8]}
34... Qf1+ {[%clk 0:00:14.1]} 35. Kc2 {[%clk 0:00:08.7]} 35... Bb6 {[%clk
0:00:13.4]} 36. Rf4 {[%clk 0:00:05.5]} 36... Rxf4 {[%clk 0:00:13.3]} 37. Nxf4+
{[%clk 0:00:06.3]} 37... Kh7 {[%clk 0:00:13.5]} 38. Qh5+ {[%clk 0:00:06.2]}
38... Kg8 {[%clk 0:00:13.6]} 39. Qe5 {[%clk 0:00:06.3]} 39... Kh7 {[%clk
0:00:13.9]} 40. Qh5+ {[%clk 0:00:05.5]} 40... Kg8 {[%clk 0:00:13.8]} 41. Qe8+
{[%clk 0:00:05.3]} 41... Kh7 {[%clk 0:00:13.8]} 42. Qg6+ {[%clk 0:00:05.3]}
42... Kg8 {[%clk 0:00:14.7]} 43. Qe6+ {[%clk 0:00:05]} 43... Kh7 {[%clk
0:00:14.5]} 44. Qf5+ {[%clk 0:00:05.2]} 44... Kg8 {[%clk 0:00:14.5]} 45. Qe6+
{[%clk 0:00:05.1]} 45... Kh7 {[%clk 0:00:14.5]} 46. Qg6+ {[%clk 0:00:05.4]}
46... Kg8 {[%clk 0:00:14.5]} 47. Qe8+ {[%clk 0:00:06]} 47... Kh7 {[%clk
0:00:14.5]} 48. Qh5+ {[%clk 0:00:06.8]} 1/2-1/2

[Event "*** Titled Tuesday Blitz"]
[Site "Chess.com"]
[Date "2020.05.12"]
[Round "1"]
[White "Kimster98"]
[Black "aquiles88"]
[Result "1-0"]
[WhiteElo "2557"]
[BlackElo "2225"]
[TimeControl "180+1"]
[EndTime "10:08:12 PDT"]
[Termination "Kimster98 won by checkmate"]

1. d4 {[%clk 0:02:59.4]} 1... d6 {[%clk 0:02:59.5]} 2. c4 {[%clk 0:02:58.5]}
2... e5 {[%clk 0:02:59.4]} 3. Nc3 {[%clk 0:02:59.1]} 3... Nd7 {[%clk 0:02:58.1]}
4. Nf3 {[%clk 0:02:58.4]} 4... Ngf6 {[%clk 0:02:57]} 5. e4 {[%clk 0:02:58.3]}
5... g6 {[%clk 0:02:55.2]} 6. g3 {[%clk 0:02:54.9]} 6... Bg7 {[%clk 0:02:55.2]}
7. Bg2 {[%clk 0:02:55.4]} 7... O-O {[%clk 0:02:55.7]} 8. O-O {[%clk 0:02:55.8]}
8... c6 {[%clk 0:02:55.3]} 9. d5 {[%clk 0:02:52.6]} 9... cxd5 {[%clk 0:02:54.5]}
10. cxd5 {[%clk 0:02:52.3]} 10... Nc5 {[%clk 0:02:54]} 11. Ne1 {[%clk
0:02:52.6]} 11... a5 {[%clk 0:02:53.1]} 12. Nd3 {[%clk 0:02:52.5]} 12... Nfd7
{[%clk 0:02:50.8]} 13. Be3 {[%clk 0:02:50.8]} 13... Nxd3 {[%clk 0:02:41]} 14.
Qxd3 {[%clk 0:02:51.7]} 14... f5 {[%clk 0:02:40.7]} 15. exf5 {[%clk 0:02:39.4]}
15... gxf5 {[%clk 0:02:39.3]} 16. f4 {[%clk 0:02:39.9]} 16... e4 {[%clk
0:02:32]} 17. Qd2 {[%clk 0:02:38.3]} 17... Qf6 {[%clk 0:02:30.1]} 18. Rfd1
{[%clk 0:02:34.2]} 18... Nc5 {[%clk 0:02:28.4]} 19. Bd4 {[%clk 0:02:33.2]} 19...
Qxd4+ {[%clk 0:02:26.3]} 20. Qxd4 {[%clk 0:02:34.1]} 20... Bxd4+ {[%clk
0:02:26.6]} 21. Rxd4 {[%clk 0:02:35]} 21... Bd7 {[%clk 0:02:24.7]} 22. Bf1
{[%clk 0:02:34.8]} 22... Rac8 {[%clk 0:02:15.7]} 23. Rad1 {[%clk 0:02:29.3]}
23... Rc7 {[%clk 0:02:08.7]} 24. Kf2 {[%clk 0:02:26.5]} 24... Rb8 {[%clk
0:02:08.1]} 25. Bb5 {[%clk 0:02:24.4]} 25... Kf7 {[%clk 0:02:01.1]} 26. Ke3
{[%clk 0:02:23.4]} 26... Bxb5 {[%clk 0:01:57.4]} 27. Nxb5 {[%clk 0:02:22.9]}
27... Rd7 {[%clk 0:01:57.5]} 28. Rc4 {[%clk 0:02:16.6]} 28... Nd3 {[%clk
0:01:52.3]} 29. Rd2 {[%clk 0:02:09.3]} 29... h5 {[%clk 0:01:49.2]} 30. Nd4
{[%clk 0:02:01]} 30... Kf6 {[%clk 0:01:43.2]} 31. Rdc2 {[%clk 0:01:56.4]} 31...
Nb4 {[%clk 0:01:35.1]} 32. R2c3 {[%clk 0:01:52.1]} 32... Nd3 {[%clk 0:01:26.9]}
33. Rc8 {[%clk 0:01:48.3]} 33... Rxc8 {[%clk 0:01:23]} 34. Rxc8 {[%clk
0:01:49.2]} 34... Nxb2 {[%clk 0:01:23.1]} 35. Rf8+ {[%clk 0:01:45.8]} 35... Rf7
{[%clk 0:01:22.9]} 36. Rxf7+ {[%clk 0:01:45]} 36... Kxf7 {[%clk 0:01:22.6]} 37.
Nxf5 {[%clk 0:01:45.9]} 37... Nc4+ {[%clk 0:01:10.8]} 38. Kxe4 {[%clk
0:01:31.1]} 38... Kf6 {[%clk 0:01:09.3]} 39. Nd4 {[%clk 0:01:26.2]} 39... a4
{[%clk 0:00:57.9]} 40. Kd3 {[%clk 0:01:23.8]} 40... Nb6 {[%clk 0:00:56.9]} 41.
Ke4 {[%clk 0:01:23.1]} 41... Nc4 {[%clk 0:00:56.7]} 42. h3 {[%clk 0:01:15.5]}
42... a3 {[%clk 0:00:55]} 43. Nb5 {[%clk 0:01:10]} 43... Nd2+ {[%clk 0:00:43.5]}
44. Kd3 {[%clk 0:01:07.2]} 44... Nf1 {[%clk 0:00:39.8]} 45. g4 {[%clk
0:01:06.8]} 45... hxg4 {[%clk 0:00:39.4]} 46. hxg4 {[%clk 0:01:07.7]} 46... Nh2
{[%clk 0:00:37.5]} 47. g5+ {[%clk 0:01:03.9]} 47... Kf5 {[%clk 0:00:37.7]} 48.
Nxd6+ {[%clk 0:00:29.4]} 48... Kxf4 {[%clk 0:00:37.6]} 49. g6 {[%clk 0:00:30.1]}
49... Ng4 {[%clk 0:00:37.7]} 50. Ne8 {[%clk 0:00:24.1]} 50... Nh6 {[%clk
0:00:36.6]} 51. d6 {[%clk 0:00:23.5]} 51... b5 {[%clk 0:00:33.3]} 52. d7 {[%clk
0:00:22.2]} 52... b4 {[%clk 0:00:33.7]} 53. d8=Q {[%clk 0:00:21.7]} 53... b3
{[%clk 0:00:33.9]} 54. Qh4+ {[%clk 0:00:20.1]} 54... Ng4 {[%clk 0:00:31]} 55.
Nf6 {[%clk 0:00:18.2]} 55... bxa2 {[%clk 0:00:29.1]} 56. Qxg4+ {[%clk
0:00:18.6]} 56... Ke5 {[%clk 0:00:28.9]} 57. Qd4+ {[%clk 0:00:19.1]} 57... Kf5
{[%clk 0:00:28.2]} 58. g7 {[%clk 0:00:19.3]} 58... a1=Q {[%clk 0:00:27.8]} 59.
Qxa1 {[%clk 0:00:19.3]} 59... a2 {[%clk 0:00:27.8]} 60. g8=Q {[%clk 0:00:19.4]}
60... Kf4 {[%clk 0:00:25.1]} 61. Qg4# {[%clk 0:00:20.3]} 1-0

[Event "*** Titled Tuesday Blitz"]
[Site "Chess.com"]
[Date "2020.05.12"]
[Round "1"]
[White "francyIM"]
[Black "ARMQUEEN"]
[Result "1-0"]
[WhiteElo "2675"]
[BlackElo "2347"]
[TimeControl "180+1"]
[EndTime "10:08:13 PDT"]
[Termination "francyIM won by resignation"]

1. d4 {[%clk 0:03:00.4]} 1... d5 {[%clk 0:02:59.4]} 2. c4 {[%clk 0:03:00.1]}
2... dxc4 {[%clk 0:02:59.7]} 3. Nf3 {[%clk 0:02:58.4]} 3... Nf6 {[%clk
0:03:00.2]} 4. e3 {[%clk 0:02:57.2]} 4... e6 {[%clk 0:03:00.5]} 5. Bxc4 {[%clk
0:02:57.1]} 5... a6 {[%clk 0:03:00.9]} 6. O-O {[%clk 0:02:57.1]} 6... c5 {[%clk
0:03:01]} 7. dxc5 {[%clk 0:02:53]} 7... Qxd1 {[%clk 0:03:00.1]} 8. Rxd1 {[%clk
0:02:52.8]} 8... Bxc5 {[%clk 0:02:59.5]} 9. a3 {[%clk 0:02:52.6]} 9... b5 {[%clk
0:02:57.8]} 10. Be2 {[%clk 0:02:51.7]} 10... Nc6 {[%clk 0:02:54.6]} 11. b4
{[%clk 0:02:51.5]} 11... Bb6 {[%clk 0:02:54.2]} 12. Bb2 {[%clk 0:02:52.4]} 12...
Bb7 {[%clk 0:02:53.3]} 13. Nbd2 {[%clk 0:02:53]} 13... Ke7 {[%clk 0:02:52.7]}
14. Nb3 {[%clk 0:02:52]} 14... Rhd8 {[%clk 0:02:49.2]} 15. Rac1 {[%clk 0:02:47]}
15... Rxd1+ {[%clk 0:02:47.4]} 16. Rxd1 {[%clk 0:02:46.6]} 16... Rd8 {[%clk
0:02:47.3]} 17. Rc1 {[%clk 0:02:46.6]} 17... Nd5 {[%clk 0:02:36.2]} 18. Nfd4
{[%clk 0:02:39.7]} 18... Nxd4 {[%clk 0:02:29.3]} 19. Bxd4 {[%clk 0:02:40.6]}
19... Bxd4 {[%clk 0:02:26.8]} 20. Nxd4 {[%clk 0:02:40.4]} 20... Kd6 {[%clk
0:02:24.4]} 21. Bf3 {[%clk 0:02:39.3]} 21... Rc8 {[%clk 0:02:19.7]} 22. Rxc8
{[%clk 0:02:37.7]} 22... Bxc8 {[%clk 0:02:19.6]} 23. Kf1 {[%clk 0:02:35.8]}
23... f5 {[%clk 0:02:09.6]} 24. Ke1 {[%clk 0:02:34.2]} 24... Nb6 {[%clk
0:02:09.2]} 25. Be2 {[%clk 0:02:33.1]} 25... e5 {[%clk 0:02:08.5]} 26. Nb3
{[%clk 0:02:32.1]} 26... Na4 {[%clk 0:02:03]} 27. Kd2 {[%clk 0:02:30.9]} 27...
Kd5 {[%clk 0:02:01.7]} 28. Nc1 {[%clk 0:02:26.8]} 28... g5 {[%clk 0:01:58.7]}
29. Bd1 {[%clk 0:02:25.7]} 29... Nb6 {[%clk 0:01:58.1]} 30. Bb3+ {[%clk
0:02:25.8]} 30... Nc4+ {[%clk 0:01:56.9]} 31. Kc3 {[%clk 0:02:25.4]} 31... Be6
{[%clk 0:01:52.2]} 32. Bxc4+ {[%clk 0:02:21.3]} 32... bxc4 {[%clk 0:01:52.4]}
33. Ne2 {[%clk 0:02:19.6]} 33... f4 {[%clk 0:01:46.5]} 34. exf4 {[%clk
0:02:18.3]} 34... gxf4 {[%clk 0:01:46.3]} 35. f3 {[%clk 0:02:08.2]} 35... Bf5
{[%clk 0:01:43.1]} 36. g3 {[%clk 0:02:07.4]} 36... Bd3 {[%clk 0:01:35.6]} 37.
Nc1 {[%clk 0:02:06.6]} 37... fxg3 {[%clk 0:01:33.5]} 38. hxg3 {[%clk 0:02:07.5]}
38... e4 {[%clk 0:01:32.9]} 39. Nxd3 {[%clk 0:01:21.4]} 39... exd3 {[%clk
0:01:12.5]} 40. a4 {[%clk 0:01:20.4]} 40... h5 {[%clk 0:01:06.4]} 41. a5 {[%clk
0:00:47.9]} 41... Ke5 {[%clk 0:00:43.5]} 42. f4+ {[%clk 0:00:12.5]} 42... Ke4
{[%clk 0:00:42.9]} 43. b5 {[%clk 0:00:12.5]} 43... Ke3 {[%clk 0:00:24.9]} 44.
bxa6 {[%clk 0:00:11.9]} 44... d2 {[%clk 0:00:24.8]} 45. a7 {[%clk 0:00:11.7]}
45... d1=Q {[%clk 0:00:24.6]} 46. a8=Q {[%clk 0:00:12.2]} 46... Qd3+ {[%clk
0:00:23]} 47. Kb4 {[%clk 0:00:12.1]} 47... Qb3+ {[%clk 0:00:23]} 48. Kc5 {[%clk
0:00:11.4]} 48... Kd2 {[%clk 0:00:18]} 49. Qg2+ {[%clk 0:00:10.4]} 49... Kc1
{[%clk 0:00:17.7]} 50. Qf1+ {[%clk 0:00:09.7]} 50... Kb2 {[%clk 0:00:17.8]} 51.
Qxc4 {[%clk 0:00:09.7]} 51... Qxg3 {[%clk 0:00:16.7]} 52. a6 {[%clk 0:00:08.8]}
52... Qg2 {[%clk 0:00:10.6]} 53. a7 {[%clk 0:00:08.1]} 53... Qb7 {[%clk
0:00:10.4]} 54. Qb4+ {[%clk 0:00:08.5]} 54... Qxb4+ {[%clk 0:00:10.5]} 55. Kxb4
{[%clk 0:00:09.4]} 55... h4 {[%clk 0:00:10.7]} 56. a8=Q {[%clk 0:00:10.3]} 56...
h3 {[%clk 0:00:10.3]} 57. Qh1 {[%clk 0:00:11.2]} 57... Ka2 {[%clk 0:00:09.9]}
58. Qxh3 {[%clk 0:00:11.3]} 58... Kb2 {[%clk 0:00:10.8]} 59. Qg2+ {[%clk
0:00:11.7]} 1-0

[Event "*** Titled Tuesday Blitz"]
[Site "Chess.com"]
[Date "2020.05.12"]
[Round "1"]
[White "Azeryahu"]
[Black "amiralfio"]
[Result "0-1"]
[WhiteElo "2822"]
[BlackElo "2448"]
[TimeControl "180+1"]
[EndTime "10:08:14 PDT"]
[Termination "amiralfio won by checkmate"]

1. Nf3 {[%clk 0:03:00.4]} 1... Nf6 {[%clk 0:02:53.5]} 2. g3 {[%clk 0:02:56.7]}
2... d5 {[%clk 0:02:43.4]} 3. Bg2 {[%clk 0:02:56.4]} 3... g6 {[%clk 0:02:41.2]}
4. b3 {[%clk 0:02:55.8]} 4... c5 {[%clk 0:02:39.8]} 5. Bb2 {[%clk 0:02:56.7]}
5... Bg7 {[%clk 0:02:39.2]} 6. O-O {[%clk 0:02:57.2]} 6... O-O {[%clk
0:02:38.7]} 7. c4 {[%clk 0:02:57.8]} 7... d4 {[%clk 0:02:37.4]} 8. b4 {[%clk
0:02:58.3]} 8... Nc6 {[%clk 0:02:38.3]} 9. bxc5 {[%clk 0:02:56.6]} 9... e5
{[%clk 0:02:36.3]} 10. d3 {[%clk 0:02:56.5]} 10... Nd7 {[%clk 0:02:35.9]} 11.
Nfd2 {[%clk 0:02:56.4]} 11... Nxc5 {[%clk 0:02:27.7]} 12. Ba3 {[%clk 0:02:55.9]}
12... Qb6 {[%clk 0:02:14]} 13. Nb3 {[%clk 0:02:52.5]} 13... Nxb3 {[%clk
0:02:00.9]} 14. Qxb3 {[%clk 0:02:53]} 14... Re8 {[%clk 0:01:51.4]} 15. Nd2
{[%clk 0:02:52.6]} 15... Bg4 {[%clk 0:01:48.5]} 16. Rfe1 {[%clk 0:02:46.8]}
16... Bf8 {[%clk 0:01:43.8]} 17. Bxf8 {[%clk 0:02:44.2]} 17... Kxf8 {[%clk
0:01:44.7]} 18. Ne4 {[%clk 0:02:41.4]} 18... Be6 {[%clk 0:01:31.1]} 19. Nd6
{[%clk 0:02:34.9]} 19... Re7 {[%clk 0:01:25.3]} 20. Qxb6 {[%clk 0:02:29.1]}
20... axb6 {[%clk 0:01:26.2]} 21. Nxb7 {[%clk 0:02:29]} 21... Nb4 {[%clk
0:01:13.2]} 22. Rab1 {[%clk 0:02:28.7]} 22... Nc2 {[%clk 0:00:38.5]} 23. Rec1
{[%clk 0:02:27.9]} 23... Rxa2 {[%clk 0:00:37.9]} 24. Rxb6 {[%clk 0:02:28.2]}
24... Bg4 {[%clk 0:00:32.7]} 25. c5 {[%clk 0:02:21.9]} 25... Bxe2 {[%clk
0:00:22.7]} 26. Bd5 {[%clk 0:02:22.4]} 26... Ra1 {[%clk 0:00:22.5]} 27. Rxa1
{[%clk 0:02:22.2]} 27... Nxa1 {[%clk 0:00:23.4]} 28. Bc4 {[%clk 0:02:13.9]}
28... e4 {[%clk 0:00:19]} 29. Na5 {[%clk 0:01:43.1]} 29... exd3 {[%clk
0:00:16.6]} 30. Rb2 {[%clk 0:01:42.8]} 30... Nc2 {[%clk 0:00:12.1]} 31. Nb3
{[%clk 0:01:37.4]} 31... Rb7 {[%clk 0:00:07.3]} 32. Ra2 {[%clk 0:01:25.2]} 32...
Nb4 {[%clk 0:00:03.3]} 33. Ra8+ {[%clk 0:01:25.2]} 33... Kg7 {[%clk 0:00:03.6]}
34. Nxd4 {[%clk 0:01:26.1]} 34... Bd1 {[%clk 0:00:01.7]} 35. Nb5 {[%clk
0:01:15]} 35... d2 {[%clk 0:00:02]} 36. Nd6 {[%clk 0:01:15.2]} 36... Re7 {[%clk
0:00:02.6]} 37. Ne8+ {[%clk 0:01:03.7]} 37... Kh6 {[%clk 0:00:02.7]} 38. Nf6
{[%clk 0:01:04.6]} 38... Re1+ {[%clk 0:00:03.2]} 39. Kg2 {[%clk 0:01:04.8]}
39... Bf3+ {[%clk 0:00:03.8]} 40. Kh3 {[%clk 0:01:03.9]} 40... d1=N {[%clk
0:00:04.2]} 41. g4 {[%clk 0:00:59.5]} 41... Bxa8 {[%clk 0:00:02.5]} 42. Kh4
{[%clk 0:00:54.5]} 42... Nxf2 {[%clk 0:00:02.6]} 43. g5+ {[%clk 0:00:51.9]}
43... Kg7 {[%clk 0:00:03.2]} 44. Kg3 {[%clk 0:00:52.8]} 44... Ne4+ {[%clk
0:00:03]} 45. Kf4 {[%clk 0:00:53.7]} 45... Nxf6 {[%clk 0:00:03]} 46. gxf6+
{[%clk 0:00:54.6]} 46... Kxf6 {[%clk 0:00:03.9]} 47. c6 {[%clk 0:00:55.5]} 47...
Re3 {[%clk 0:00:04]} 48. c7 {[%clk 0:00:56.4]} 48... Bb7 {[%clk 0:00:04.6]} 49.
Kxe3 {[%clk 0:00:56.4]} 49... Bc8 {[%clk 0:00:05.5]} 50. Kd4 {[%clk 0:00:56.2]}
50... Na6 {[%clk 0:00:06.3]} 51. h4 {[%clk 0:00:52.4]} 51... Nxc7 {[%clk
0:00:06.5]} 52. Ke3 {[%clk 0:00:53.3]} 52... Be6 {[%clk 0:00:06.5]} 53. Bf1
{[%clk 0:00:53.9]} 53... Nd5+ {[%clk 0:00:06.9]} 54. Ke4 {[%clk 0:00:54]} 54...
h5 {[%clk 0:00:07.8]} 55. Bg2 {[%clk 0:00:53.4]} 55... Ne7 {[%clk 0:00:07.4]}
56. Bf1 {[%clk 0:00:53.8]} 56... Bf5+ {[%clk 0:00:07.1]} 57. Kf4 {[%clk
0:00:54.7]} 57... Nd5+ {[%clk 0:00:06.7]} 58. Kg3 {[%clk 0:00:55.1]} 58... Ke5
{[%clk 0:00:07.2]} 59. Bc4 {[%clk 0:00:55.2]} 59... f6 {[%clk 0:00:07.3]} 60.
Ba2 {[%clk 0:00:55.6]} 60... g5 {[%clk 0:00:07.5]} 61. hxg5 {[%clk 0:00:56.1]}
61... fxg5 {[%clk 0:00:08.4]} 62. Bb3 {[%clk 0:00:56]} 62... h4+ {[%clk
0:00:08.4]} 63. Kh2 {[%clk 0:00:56.9]} 63... Ne3 {[%clk 0:00:08.3]} 64. Ba4
{[%clk 0:00:57.2]} 64... Kf4 {[%clk 0:00:08.6]} 65. Kh1 {[%clk 0:00:57.5]} 65...
g4 {[%clk 0:00:08.9]} 66. Kg1 {[%clk 0:00:58.4]} 66... Kg3 {[%clk 0:00:08.7]}
67. Bc6 {[%clk 0:00:58.9]} 67... h3 {[%clk 0:00:08.1]} 68. Bg2 {[%clk
0:00:59.8]} 68... Nxg2 {[%clk 0:00:06.7]} 69. Kh1 {[%clk 0:01:00.1]} 69... Nf4
{[%clk 0:00:06.7]} 70. Kg1 {[%clk 0:01:01]} 70... Be4 {[%clk 0:00:05.9]} 71. Kf1
{[%clk 0:01:00.1]} 71... h2 {[%clk 0:00:06.2]} 72. Ke1 {[%clk 0:01:01]} 72...
h1=Q+ {[%clk 0:00:06.1]} 73. Kd2 {[%clk 0:01:01.9]} 73... Qg2+ {[%clk
0:00:06.4]} 74. Kc3 {[%clk 0:01:02.8]} 74... Qf3+ {[%clk 0:00:06.8]} 75. Kc4
{[%clk 0:01:03.7]} 75... Kh4 {[%clk 0:00:07.3]} 76. Kc5 {[%clk 0:01:04.6]} 76...
g3 {[%clk 0:00:07.7]} 77. Kb6 {[%clk 0:01:05.5]} 77... g2 {[%clk 0:00:08.1]} 78.
Kc7 {[%clk 0:01:06.4]} 78... g1=Q {[%clk 0:00:08.1]} 79. Kd6 {[%clk 0:01:07.3]}
79... Qd4+ {[%clk 0:00:08]} 80. Ke7 {[%clk 0:01:07]} 80... Qfc3 {[%clk
0:00:08.2]} 81. Kf7 {[%clk 0:01:07.9]} 81... Qc7+ {[%clk 0:00:08.1]} 82. Kf8
{[%clk 0:01:08.3]} 82... Qdd8# {[%clk 0:00:08.2]} 0-1